fUST/lending_fUST_20240409
["ID","MTS","AMOUNT","RATE_DAILY","PERIOD"]
[321923321,1712633438864,-157.38620419,0.00026558,2]
[321923322,1712633438873,-230.50466759,0.00026639,2]
[321923323,1712633438882,-185.58568069,0.00026998,2]
[321923324,1712633438892,-154.98450155,0.00026998,2]
[321923325,1712633438901,-303.81962515,0.00026998,2]
[321923326,1712633438910,-562.79218199,0.00026999,2]
[321923327,1712633438920,-154.98450155,0.00027,2]
[321923328,1712633438930,-186.5206245,0.00027325,3]
[321923329,1712633438939,-929.1404871,0.0002733,2]
[321923330,1712633438949,-193.268398,0.00027397,2]
[321923331,1712633438959,-195.861841,0.00027397,2]
[321923332,1712633438968,-222.88209278,0.0002867,2]
[321923333,1712633438977,-823.0,0.00028714,2]
[321923334,1712633438987,-164.93794003,0.00028739,2]
[321923335,1712633438996,-469.76688052,0.00028768,2]
[321923336,1712633439006,-157.22434872,0.00028768,2]
[321923337,1712633439016,-3144.0251039,0.00028768,2]
[321923338,1712633439025,-1104.35562516,0.00028768,2]
[321923339,1712633439034,-1575.9243904,0.00028768,2]
[321923340,1712633439044,-258.27489927,0.00028768,2]
[321923341,1712633439053,-155.03959068,0.00028768,2]
[321923342,1712633439063,-1722.81348497,0.00028768,2]
[321923343,1712633439073,-597.00638538,0.00028768,2]
[321923344,1712633439082,-1063.36198929,0.00028768,2]
[321923345,1712633439093,-309.46357405,0.00028768,2]
[321923346,1712633439104,-527.08838503,0.00028768,2]
[321923347,1712633439113,-644.01955769,0.00028768,2]
[321923348,1712633439124,-440.6450495,0.00028768,2]
[321923349,1712633439135,-304.46951332,0.00028768,2]
[321923350,1712633439144,-320.66701337,0.00028768,2]
[321923351,1712633439155,-319.21293233,0.00028768,2]
[321923352,1712633439166,-464.79224544,0.00028768,2]
[321923353,1712633439174,-181.98081062,0.00028768,2]
[321923354,1712633439185,-309.23491498,0.00028768,2]
[321923355,1712633439197,-401.37356776,0.00028768,2]
[321923356,1712633439206,-1558.39061399,0.00028768,2]
[321923357,1712633439215,-557.13709906,0.00028768,2]
[321923358,1712633439224,-206.92317632,0.00028768,2]
[321923359,1712633439233,-299.36992546,0.00028768,2]
[321923360,1712633439244,-231.56571446,0.00028768,2]
[321923361,1712633439254,-2176.71282079,0.00028768,2]
[321923362,1712633439263,-265.16123717,0.00028768,2]
[321923363,1712633439273,-365.93703847,0.00028769,2]
[321923364,1712633439282,-349.08683843,0.00028769,2]
[321923365,1712633439292,-164.14803076,0.00028769,10]
[321923366,1712633439301,-4727.21773822,0.00028769,2]
[321923367,1712633439311,-161225.34112846,0.0002877,2]
[321923368,1712633439320,-230.50466759,0.000289,2]
[321923369,1712633439329,-840.66911666,0.00029,2]
[321923370,1712633439338,-186.5206245,0.00029712,4]
[321923371,1712633439348,-23803.09920649,0.00029987,2]
[321923372,1712633439357,-54133.19770205,0.0003,30]
[321923373,1712633439366,-168.33817547,0.0003,2]
[321923374,1712633439375,-45060.96550244,0.0003,5]
[321923375,1712633439385,-378.2442662,0.0003,10]
[321923376,1712633439394,-662.62050677,0.0003,2]
[321923377,1712633439403,-574.86367116,0.0003,2]
[321923378,1712633439413,-33293.52631141,0.0003,7]
[321923379,1712633439422,-213.0,0.0003,2]
[321923380,1712633439431,-150.0,0.00030999,2]
[321923381,1712633439441,-150.0,0.00030999,2]
[321923382,1712633439450,-157.38620419,0.00031558,2]
[321923383,1712633439460,-1152.0,0.00031585,2]
[321923384,1712633439469,-186.5206245,0.00032099,5]
[321923385,1712633439478,-162.716011,0.00033165,2]
[321923386,1712633439487,-193.268398,0.00033165,2]
[321923387,1712633439496,-195.861841,0.00033165,2]
[321923388,1712633439505,-186.5206245,0.00034486,7]
[321923389,1712633439514,-1613.0,0.00034744,2]
[321923390,1712633439523,-596.08980381,0.00035,2]
[321923391,1712633439532,-668.76456763,0.00035,4]
[321923392,1712633439541,-161.167458,0.00035225,2]
[321923393,1712633439550,-36212.4183,0.00035721,30]
[321923394,1712633439560,-498.0,0.00035849,15]
[321923395,1712633439569,-793.691554,0.00036717,2]
[321923396,1712633439578,-186.5206245,0.00036874,8]
[321923397,1712633439587,-1272.37103576,0.000369,4]
[321923398,1712633439596,-1682.018238,0.00036986,120]
[321923399,1712633439606,-155.0,0.00037,4]
[321923400,1712633439616,-2000.0,0.00037,2]
[321923401,1712633439625,-153.0,0.00037082,2]
[321923402,1712633439636,-160.0,0.00037097,3]
[321923403,1712633439645,-153.0,0.00037191,2]
[321923404,1712633439654,-160.0,0.00037394,4]
[321923405,1712633439730,-2000.0,0.000375,2]
[321923406,1712633439740,-160.0,0.00037691,5]
[321923407,1712633439750,-160.0,0.00037987,6]
[321923408,1712633439759,-1333.20001333,0.00038,6]
[321923409,1712633439769,-1333.20001333,0.00038,6]
[321923410,1712633439778,-202.7418102,0.00038013,2]
[321923411,1712633439787,-236.1556881,0.00038013,2]
[321923412,1712633439797,-202.7046065,0.00038013,2]
[321923413,1712633439806,-202.7046065,0.00038013,2]
[321923414,1712633439816,-202.7046065,0.00038013,2]
[321923415,1712633439826,-202.7046065,0.00038013,2]
[321923416,1712633439835,-202.7046065,0.00038013,2]
[321923417,1712633439844,-154.76623,0.00038037,2]
[321923418,1712633439854,-153.0,0.00038037,2]
[321923419,1712633439863,-153.0,0.00038037,2]
[321923420,1712633439872,-153.0,0.00038037,2]
[321923421,1712633439882,-153.0,0.00038037,2]
[321923422,1712633439891,-153.0,0.00038037,2]
[321923423,1712633439900,-153.0,0.00038037,2]
[321923424,1712633439910,-153.0,0.00038037,2]
[321923425,1712633439919,-153.0,0.00038037,2]
[321923426,1712633439928,-153.0,0.00038037,2]
[321923428,1712633439937,-153.0,0.00038037,2]
[321923429,1712633439947,-153.0,0.00038037,2]
[321923430,1712633439956,-153.0,0.00038037,2]
[321923431,1712633439965,-153.0,0.00038037,2]
[321923432,1712633439974,-153.0,0.00038037,2]
[321923433,1712633439984,-153.0,0.00038037,2]
[321923434,1712633439994,-153.0,0.00038037,2]
[321923435,1712633440005,-153.0,0.00038037,2]
[321923436,1712633440014,-153.0,0.00038037,2]
[321923437,1712633440023,-153.0,0.00038037,2]
[321923438,1712633440032,-153.0,0.00038037,2]
[321923439,1712633440041,-153.0,0.00038037,2]
[321923440,1712633440051,-153.0,0.00038037,2]
[321923441,1712633440060,-153.0,0.00038037,2]
[321923442,1712633440069,-2258.0,0.00038218,2]
[321923443,1712633440078,-160.0,0.00038284,7]
[321923444,1712633440088,-1000.0,0.000384,2]
[321923445,1712633440096,-1000.0,0.000384,2]
[321923446,1712633440106,-160.0,0.00038581,8]
[321923447,1712633440115,-585.0,0.000386,2]
[321923448,1712633440125,-158.39461328,0.00038606,3]
[321923449,1712633440134,-500.0,0.0003868,30]
[321923450,1712633440143,-223.78207718,0.0003868,30]
[321923451,1712633440153,-153.0,0.00038859,2]
[321923452,1712633440164,-153.0,0.00038859,2]
[321923453,1712633440174,-202.7046065,0.00038859,2]
[321923454,1712633440183,-153.0,0.00038859,2]
[321923455,1712633440193,-202.7046065,0.00038859,2]
[321923456,1712633440203,-153.0,0.00038859,2]
[321923457,1712633440214,-202.7046065,0.00038859,2]
[321923458,1712633440222,-153.0,0.00038859,2]
[321923459,1712633440232,-202.7046065,0.00038859,2]
[321923460,1712633440242,-153.0,0.00038859,2]
[321923461,1712633440251,-202.7046065,0.00038859,2]
[321923462,1712633440261,-153.0,0.00038859,2]
[321923464,1712633440270,-202.7046065,0.00038859,2]
[321923466,1712633440280,-202.7046065,0.00038859,2]
[321923468,1712633440290,-153.0,0.00038859,2]
[321923470,1712633440299,-153.0,0.00038859,2]
[321923472,1712633440309,-202.7046065,0.00038859,2]
[321923474,1712633440318,-202.7046065,0.00038859,2]
[321923476,1712633440327,-153.0,0.00038859,2]
[321923478,1712633440337,-153.0,0.00038859,2]
[321923480,1712633440346,-202.7046065,0.00038859,2]
[321923482,1712633440355,-153.0,0.00038859,2]
[321923484,1712633440364,-153.0,0.00038859,2]
[321923486,1712633440373,-404.4770056,0.00038859,2]
[321923488,1712633440382,-153.0,0.00038859,2]
[321923490,1712633440392,-153.0,0.00038859,2]
[321923492,1712633440401,-153.0,0.00038859,2]
[321923494,1712633440410,-153.0,0.00038859,2]
[321923496,1712633440419,-153.0,0.00038859,2]
[321923498,1712633440429,-153.0,0.00038859,2]
[321923500,1712633440438,-155.223453,0.00038859,2]
[321923502,1712633440448,-153.0,0.00038859,2]
[321923504,1712633440457,-153.0,0.00038859,2]
[321923506,1712633440467,-153.0,0.00038859,2]
[321923508,1712633440477,-160.0,0.00038877,9]
[321923510,1712633440486,-162.716011,0.00038933,2]
[321923512,1712633440495,-193.268398,0.00038933,2]
[321923514,1712633440504,-195.861841,0.00038933,2]
[321923516,1712633440514,-151.0,0.00038939,2]
[321923518,1712633440523,-151.646154,0.00038939,2]
[321923520,1712633440532,-151.0,0.00038939,2]
[321923522,1712633440541,-151.0,0.00038939,2]
[321923524,1712633440551,-1597.091695,0.00038939,2]
[321923526,1712633440560,-1597.091695,0.00038939,2]
[321923528,1712633440571,-151.0,0.00038939,2]
[321923530,1712633440580,-151.0,0.00038939,2]
[321923532,1712633440589,-151.0,0.00038939,2]
[321923534,1712633440598,-295.644813,0.0003897,2]
[321923536,1712633440608,-295.644813,0.0003897,2]
[321923538,1712633440618,-151.0,0.0003897,2]
[321923540,1712633440627,-151.0,0.00038979,2]
[321923542,1712633440636,-192.591485,0.00038979,2]
[321923544,1712633440645,-151.0,0.00038979,2]
[321923546,1712633440655,-151.0,0.00038979,2]
[321923548,1712633440664,-151.0,0.00038979,2]
[321923550,1712633440673,-151.0,0.00038979,2]
[321923552,1712633440683,-151.0,0.00038979,2]
[321923554,1712633440692,-151.0,0.00038979,2]
[321923556,1712633440703,-655.028236,0.00038979,2]
[321923558,1712633440712,-655.028236,0.00038979,2]
[321923560,1712633440721,-279.64322112,0.00038998,4]
[321923562,1712633440729,-3717.29210644,0.00038998,4]
[321923563,1712633440739,-154.98450155,0.00038998,4]
[321923564,1712633440747,-154.98450155,0.00038998,4]
[321923565,1712633440757,-277.03921209,0.00038998,4]
[321923566,1712633440766,-154.98450155,0.00038998,4]
[321923567,1712633440775,-840.75,0.00038999,2]
[321923568,1712633440784,-840.75,0.00038999,2]
[321923569,1712633440792,-840.75,0.00038999,2]
[321923570,1712633440801,-840.75,0.00038999,2]
[321923571,1712633440811,-840.75,0.00038999,2]
[321923572,1712633440820,-840.75,0.00038999,2]
[321923573,1712633440829,-840.75,0.00038999,2]
[321923574,1712633440837,-840.75,0.00038999,2]
[321923575,1712633440846,-840.75,0.00038999,2]
[321923576,1712633440855,-687.07789016,0.00038999,2]
[321923577,1712633440868,-153.67210984,0.00038999,2]
[321923578,1712633440877,-151.0,0.00038999,2]
[321923580,1712633440886,-172.133957,0.00038999,2]
[321923581,1712633440895,-172.133957,0.00038999,2]
[321923583,1712633440904,-1857.43506988,0.00039,30]
[321923602,1712634446201,-158.51515046,0.0002736,2]
[321923603,1712634446221,-185.58568069,0.00027361,2]
[321923604,1712634446241,-154.9690062,0.00027362,2]
[321923605,1712634446263,-253.55931685,0.00027363,2]
[321923606,1712634611170,432.79987933,0.00025263,2]
[321923629,1712634632777,-327.72494088,0.00025262,2]
[321923630,1712634632835,-701.30351231,0.00025262,2]
[321923631,1712634632845,-347.59456597,0.00025263,2]
[321923632,1712634632856,-739.03421313,0.00027263,2]
[321923633,1712634632866,-557.15169096,0.00027363,2]
[321923634,1712634632875,-154.98450155,0.00027363,2]
[321923635,1712634632885,-1485.70436416,0.00027396,2]
[321923636,1712634632894,-161.775244,0.00027397,2]
[321923637,1712634632904,-161.167458,0.00027397,2]
[321923639,1712634632913,-661.72079072,0.0002892,2]
[321923649,1712634638758,-138.50636618,0.0002892,2]
[321923650,1712634638767,-380.0,0.00029054,2]
[321923651,1712634638777,-734.286832,0.00029106,2]
[321923652,1712634638786,-176.024479,0.00029519,2]
[321923653,1712634638795,-780.3944453,0.00030263,2]
[321923654,1712634638805,-805.68781913,0.00031112,2]
[321923655,1712634638815,-400.0,0.00031214,2]
[321923656,1712634638824,-400.0,0.00031214,2]
[321923657,1712634638834,-213.0,0.00031215,2]
[321923658,1712634638844,-3938.40989401,0.00031215,2]
[321923659,1712634638857,-5200.58728427,0.00031215,2]
[321923660,1712634638868,-984.8678399,0.00031215,2]
[321923661,1712634638880,-1600.0,0.00031215,2]
[321923662,1712634638896,-11330.91656739,0.00031215,2]
[321923663,1712634639066,-1845.21841443,0.00031215,2]
[321923664,1712634639077,-629.28439096,0.00032668,2]
[321923665,1712634639086,-560.0,0.000336,2]
[321923666,1712634639095,-249.34736369,0.0003428,4]
[321923667,1712634639104,-171.333637,0.00034281,2]
[321923668,1712634639115,-620.46421955,0.00034301,2]
[321923669,1712634639124,-3319.0907133,0.00034308,2]
[321923670,1712634639133,-560.0,0.00034335,2]
[321923671,1712634639142,-620.95958386,0.00035655,15]
[321923675,1712634639223,-594.57971037,0.00035655,15]
[321923677,1712634639233,-1948.30441505,0.00035656,30]
[321923714,1712634644161,-319.0,0.00035656,2]
[321923715,1712634644170,-15568.05782345,0.00035656,30]
[321923718,1712634644204,-303.61674013,0.00035656,30]
[321923723,1712634647122,-371.43446064,0.00027363,2]
[321923724,1712634647133,-467.26883927,0.00035656,30]
[321923752,1712635632165,-174.35946036,0.00027174,2]
[321923753,1712635636092,-912.86389909,0.00027174,2]
[321923754,1712635636114,-23.26729612,0.00027175,2]
[321923756,1712635645124,-276.73270388,0.00027175,2]
[321923757,1712635645222,-127.27886498,0.00027176,2]
[321923760,1712635815830,371.7514317,0.00025075,2]
[321923788,1712635831964,-156.97519351,0.00027069,2]
[321923790,1712635831973,-3718.21894048,0.00027168,2]
[321923792,1712635831982,-300.0,0.00027168,2]
[321923794,1712635831992,-300.0,0.00027168,2]
[321923796,1712635832001,-185.58568069,0.00027195,2]
[321923798,1712635832010,-249.01156886,0.00027196,2]
[321923800,1712635832020,-157.14248875,0.00027363,2]
[321923801,1712635832029,-173.533038,0.00027397,2]
[321923802,1712635832039,-162.716011,0.00027397,2]
[321923803,1712635832048,-164.278138,0.00027397,2]
[321923804,1712635832059,-200.0,0.00028063,2]
[321923805,1712635832068,-8457.77620905,0.0002877,2]
[321923807,1712635832078,-367.143416,0.00028777,2]
[321923809,1712635832087,-388.37733706,0.00029273,4]
[321923810,1712635832096,-420.0,0.00029367,2]
[321923811,1712635832106,-177.588732,0.00029874,2]
[321923812,1712635832117,-420.0,0.00029885,2]
[321923813,1712635832127,-280.0,0.00029933,2]
[321923814,1712635832136,-290.70517799,0.0003,2]
[321923815,1712635832146,-286.0,0.0003,2]
[321923816,1712635832155,-156.97519349,0.00030027,2]
[321923817,1712635832164,-371.7514317,0.00030075,2]
[321923818,1712635832173,-4650.7532412,0.00030094,2]
[321923819,1712635832183,-8729.1858399,0.00030126,2]
[321923820,1712635832192,-180.0,0.00030291,2]
[321923821,1712635832201,-2301.0468852,0.00030292,2]
[321923822,1712635832210,-388.37733699,0.00030686,5]
[321923823,1712635832220,-587.0,0.00031743,2]
[321923824,1712635832229,-388.37733699,0.00032098,5]
[321923825,1712635832238,-182.3070696,0.00032782,2]
[321923826,1712635832247,-587.0,0.00032873,2]
[321923827,1712635832257,-156.97519349,0.00032985,2]
[321923828,1712635832269,-164.278138,0.00033165,2]
[321923829,1712635832279,-388.37733699,0.00033511,6]
[321923830,1712635832290,-162.716011,0.00034247,2]
[321923831,1712635832299,-823.0,0.00034312,2]
[321923832,1712635832309,-388.37733699,0.00034924,7]
[321923833,1712635832318,-151.96365907,0.0003552,2]
[321923834,1712635832327,-5637.83248664,0.00035553,2]
[321923835,1712635832338,-500.0,0.0003562,2]
[321923836,1712635832348,-17925.1705,0.00035622,30]
[321923837,1712635832357,-500.0,0.00035675,2]
[321923838,1712635832367,-500.0,0.0003573,2]
[321923839,1712635832376,-500.0,0.00035785,2]
[321923840,1712635832385,-502.14291373,0.0003584,2]
[321923841,1712635832395,-432.0,0.0003589,2]
[321923842,1712635832406,-156.97519349,0.00035942,2]
[321923843,1712635832416,-432.0,0.00036,2]
[321923844,1712635832425,-823.0,0.00036161,2]
[321923845,1712635832435,-388.37733699,0.00036337,7]
[321923846,1712635832446,-153.0,0.00036393,2]
[321923847,1712635832456,-161.167458,0.0003653,2]
[321923848,1712635832466,-1682.018238,0.00036986,120]
[321923849,1712635832477,-452.13421818,0.00037047,4]
[321923850,1712635832486,-783.2219105,0.00037048,4]
[321923851,1712635832497,-155.23293368,0.00037048,4]
[321923852,1712635832506,-1152.0,0.00037088,2]
[321923853,1712635832517,-160.0,0.00037097,3]
[321923854,1712635832528,-151.96365907,0.0003721,2]
[321923855,1712635832537,-153.0,0.00037215,2]
[321923856,1712635832547,-160.0,0.00037394,4]
[321923857,1712635832556,-432.0,0.00037397,2]
[321923858,1712635832565,-160.0,0.00037691,5]
[321923859,1712635832574,-153.0,0.00037708,2]
[321923860,1712635832585,-388.37733699,0.00037749,8]
[321923861,1712635832595,-160.0,0.00037987,6]
[321923862,1712635832605,-1333.20001333,0.00038,6]
[321923863,1712635832614,-1333.06671999,0.00038,6]
[321923864,1712635832624,-186.57135194,0.00038035,4]
[321923865,1712635832634,-153.0,0.00038037,2]
[321923866,1712635832643,-153.0,0.00038037,2]
[321923867,1712635832653,-153.0,0.00038037,2]
[321923868,1712635832662,-153.0,0.00038037,2]
[321923869,1712635832671,-153.0,0.00038037,2]
[321923870,1712635832680,-153.0,0.00038037,2]
[321923871,1712635832689,-153.0,0.00038037,2]
[321923872,1712635832756,-153.0,0.00038037,2]
[321923873,1712635832766,-153.0,0.00038037,2]
[321923874,1712635832777,-153.0,0.00038037,2]
[321923875,1712635832786,-153.0,0.00038037,2]
[321923876,1712635832795,-154.783292,0.00038037,2]
[321923877,1712635832803,-153.0,0.00038037,2]
[321923878,1712635832812,-153.0,0.00038037,2]
[321923879,1712635832822,-153.0,0.00038037,2]
[321923880,1712635832831,-153.0,0.00038037,2]
[321923881,1712635832840,-153.0,0.00038037,2]
[321923882,1712635832849,-153.0,0.00038037,2]
[321923883,1712635832860,-153.0,0.00038037,2]
[321923884,1712635832873,-153.0,0.00038037,2]
[321923885,1712635832883,-153.0,0.00038037,2]
[321923886,1712635832893,-153.0,0.00038037,2]
[321923887,1712635832902,-153.0,0.00038037,2]
[321923888,1712635832911,-153.0,0.00038037,2]
[321923889,1712635832920,-153.0,0.00038037,2]
[321923890,1712635832929,-153.0,0.00038037,2]
[321923891,1712635832939,-153.0,0.00038037,2]
[321923892,1712635832949,-153.0,0.00038037,2]
[321923893,1712635832959,-306.0,0.00038037,2]
[321923894,1712635832968,-153.0,0.00038037,2]
[321923895,1712635832978,-153.0,0.00038037,2]
[321923896,1712635832987,-153.0,0.00038037,2]
[321923897,1712635832997,-153.0,0.00038037,2]
[321923898,1712635833006,-153.0,0.00038037,2]
[321923899,1712635833017,-153.0,0.00038037,2]
[321923900,1712635833027,-814.46662575,0.00038218,4]
[321923901,1712635833037,-160.0,0.00038284,7]
[321923902,1712635833047,-160.0,0.00038581,8]
[321923903,1712635833056,-158.41228464,0.00038609,3]
[321923904,1712635833065,-585.0,0.000387,2]
[321923905,1712635833074,-221.9766468,0.00038733,2]
[321923906,1712635833083,-153.0,0.00038733,2]
[321923907,1712635833092,-153.0,0.00038733,2]
[321923908,1712635833101,-153.0,0.00038733,2]
[321923909,1712635833110,-1000.0,0.00038738,2]
[321923910,1712635833119,-1000.0,0.00038831,2]
[321923911,1712635833129,-516.97863484,0.00038846,2]
[321923912,1712635833139,-153.0,0.00038859,2]
[321923913,1712635833148,-153.0,0.00038859,2]
[321923914,1712635833157,-153.0,0.00038859,2]
[321923915,1712635833167,-155.0101215,0.00038859,2]
[321923916,1712635833176,-153.0,0.00038859,2]
[321923917,1712635833185,-153.0,0.00038859,2]
[321923918,1712635833195,-153.0,0.00038859,2]
[321923919,1712635833204,-306.0,0.00038859,2]
[321923920,1712635833214,-153.0,0.00038859,2]
[321923921,1712635833222,-153.0,0.00038859,2]
[321923922,1712635833232,-153.0,0.00038859,2]
[321923923,1712635833241,-153.0,0.00038859,2]
[321923924,1712635833250,-153.0,0.00038859,2]
[321923925,1712635833259,-153.0,0.00038859,2]
[321923926,1712635833268,-293.7790251,0.00038859,2]
[321923927,1712635833278,-301.48552967,0.00038867,2]
[321923928,1712635833287,-160.0,0.00038877,9]
[321923929,1712635833296,-1000.0,0.00038885,2]
[321923930,1712635833307,-2000.0,0.000389,2]
[321923931,1712635833317,-2568.36951324,0.000389,2]
[321923932,1712635833326,-156.97519349,0.000389,2]
[321923933,1712635833335,-151.96365907,0.000389,2]
[321923934,1712635833344,-1590.58763427,0.00038929,2]
[321923956,1712635837983,-947.00758519,0.00027068,2]
[321923958,1712635837993,-9419.00851662,0.00027167,2]
[321923960,1712635838002,-254.81987587,0.00036985,15]
[321923962,1712635838011,-266.12553594,0.00036985,15]
[321923964,1712635838021,-281.17096283,0.00036985,15]
[321923966,1712635838030,-977.78187895,0.00038929,2]
[321923967,1712635838038,-164.278138,0.00038933,2]
[321923968,1712635838048,-2568.36951322,0.00038958,2]
[321923969,1712635838058,-155.0,0.00038997,4]
[321923970,1712635838068,-2136.96756394,0.00038998,4]
[321923971,1712635838077,-157.22434872,0.00038998,4]
[321923972,1712635838086,-154.98450155,0.00038998,4]
[321923973,1712635838095,-473.12701109,0.00038998,4]
[321923974,1712635838104,-20862.78923601,0.00038998,4]
[321923975,1712635838113,-154.98450155,0.00038998,4]
[321923976,1712635838122,-193.93696733,0.00038998,4]
[321923977,1712635838132,-154.98450155,0.00038998,4]
[321923978,1712635838141,-886.58989039,0.00038998,4]
[321923979,1712635838212,-277.03921209,0.00038998,4]
[321923980,1712635838221,-154.98450155,0.00038998,4]
[321923981,1712635838230,-1314.36097273,0.00038998,4]
[321923982,1712635838240,-271.8195425,0.00038998,4]
[321923983,1712635838249,-207.18381603,0.00038998,4]
[321923984,1712635838258,-279.64322112,0.00038998,4]
[321923985,1712635838267,-2935.09161467,0.00038998,4]
[321923986,1712635838278,-3136.8691598,0.00038998,4]
[321923987,1712635838287,-529.00122909,0.00038998,4]
[321923988,1712635838297,-668.76456763,0.00038998,4]
[321923989,1712635838306,-596.08980381,0.00038998,2]
[321923990,1712635838316,-2120.0697231,0.00038998,4]
[321923991,1712635838324,-1864.9266484,0.00038998,4]
[321923992,1712635838333,-212.17746078,0.00038998,4]
[321923993,1712635838343,-17619.10883439,0.00038998,4]
[321923994,1712635838352,-1171.45982359,0.00038998,4]
[321923995,1712635838361,-921.93384086,0.00038998,4]
[321923996,1712635838370,-301.61332653,0.00038998,4]
[321923997,1712635838379,-264.36650746,0.00038998,4]
[321923998,1712635838389,-154.9690062,0.00038998,4]
[321923999,1712635838398,-521.08149962,0.00038998,4]
[321924000,1712635838407,-309.5287172,0.00038998,4]
[321924001,1712635838416,-1091.99750885,0.00038998,4]
[321924002,1712635838425,-386.00446207,0.00038998,4]
[321924003,1712635838434,-888.83078072,0.00038998,4]
[321924004,1712635838444,-150.0,0.00038998,2]
[321924005,1712635838453,-323.75885577,0.00038998,4]
[321924006,1712635838463,-269.95668283,0.00038998,4]
[321924007,1712635838472,-825.38,0.00038999,2]
[321924008,1712635838481,-825.38,0.00038999,2]
[321924009,1712635838490,-825.38,0.00038999,2]
[321924010,1712635838499,-825.38,0.00038999,2]
[321924011,1712635838508,-825.38,0.00038999,2]
[321924012,1712635838517,-825.38,0.00038999,2]
[321924013,1712635838527,-825.38,0.00038999,2]
[321924014,1712635838535,-825.38,0.00038999,2]
[321924015,1712635838545,-825.38,0.00038999,2]
[321924016,1712635838554,-825.38,0.00038999,2]
[321924017,1712635838562,-231.18460774,0.00038999,4]
[321924018,1712635838572,-181445.25541573,0.00039,3]
[321924019,1712635838581,-822362.47850795,0.00039,30]
[321924020,1712635838594,-1203.40644067,0.00039,30]
[321924026,1712635840005,-2568.36951322,0.00038987,2]
[321924028,1712635840015,-20723.35176055,0.00039,30]
[321924030,1712635840063,-28587.88222098,0.00039,30]
[321924218,1712636191401,-3188.21218453,0.0003898,120]
[321924219,1712636294776,1261.513678,0.00036986,120]
[321924221,1712636563001,809.50339014,0.00039227,120]
[321924226,1712636668047,420.0,0.00039227,120]
[321924227,1712636715923,300.0,0.0003922,120]
[321924228,1712636726907,20.77074733,0.00039227,120]
[321924229,1712636831123,-263.37349984,0.00027274,2]
[321924230,1712636843090,-804.03332522,0.00027273,2]
[321924231,1712636849161,-185.58568069,0.00027272,2]
[321924232,1712636849182,-262.19326931,0.00027273,2]
[321924235,1712636974277,-364.70816219,0.00026279,2]
[321924516,1712637038228,-157.26509838,0.00026276,2]
[321924517,1712637038239,-376.76543432,0.00026277,2]
[321924518,1712637038319,-2760.47655017,0.00026277,2]
[321924519,1712637038328,-1405.30850807,0.00026277,2]
[321924521,1712637038337,-263.43758151,0.00026278,2]
[321924522,1712637038346,-2121.15236818,0.00026278,2]
[321924525,1712637038356,-1866.00896233,0.00026278,2]
[321924527,1712637038366,-2570.99999023,0.00026279,2]
[321924528,1712637038375,-300.0,0.0002628,2]
[321924530,1712637038385,-300.0,0.0002628,2]
[321924532,1712637038393,-375.478692,0.00026282,2]
[321924534,1712637038404,-152.28371723,0.0002719,3]
[321924536,1712637038413,-8352.78192209,0.00027273,2]
[321924538,1712637038422,-1087.22335945,0.00027289,2]
[321924540,1712637038431,-1797.40143723,0.0002729,2]
[321924542,1712637038440,-21643.90755628,0.00027291,2]
[321924544,1712637038449,-1247.14818553,0.00027294,2]
[321924546,1712637038459,-169.42637949,0.00027296,2]
[321924548,1712637038468,-166.482564,0.00027397,2]
[321924549,1712637038479,-161.775244,0.00027397,2]
[321924550,1712637038489,-420.0,0.00028433,2]
[321924551,1712637038499,-420.0,0.00028908,2]
[321924552,1712637038509,-8656.37065607,0.00029248,2]
[321924553,1712637038519,-177.37400249,0.00029249,2]
[321924554,1712637038529,-482.23507055,0.00029999,2]
[321924555,1712637038538,-281.17096283,0.00029999,2]